[Event "December 12 Late 2023"]
[Site "https://www.chess.com"]
[Date "2023.12.12"]
[Round "9"]
[White "Sarana, Alexey"]
[Black "Andreikin, Dmitry"]
[Result "0-1"]
[Board "2"]
[TimeControl "180+1"]
[WhiteFideId "24133795"]
[BlackFideId "4158814"]
[WhiteElo "3057"]
[BlackElo "3117"]
[WhiteTeam "SRB"]
[BlackTeam "FID"]
[WhiteClock "0:00:03"]
[BlackClock "0:00:08"]

1. d4 {[%clk 0:03:00]}  d5 {[%clk 0:03:00]} 2. c4 {[%clk 0:03:01]}  e6 {[%clk 0:03:00]} 3. Nc3 {[%clk 0:03:02]}  Nf6 {[%clk 0:03:00]} 4. Bg5 {[%clk 0:03:02]}  Be7 {[%clk 0:02:58]} 5. e3 {[%clk 0:03:02]}  Nbd7 {[%clk 0:02:54]} 6. Qc2 {[%clk 0:03:00]}  h6 {[%clk 0:02:54]} 7. Bh4 {[%clk 0:02:57]}  O-O {[%clk 0:02:54]} 8. cxd5 {[%clk 0:02:57]}  exd5 {[%clk 0:02:49]} 9. Bd3 {[%clk 0:02:57]}  c6 {[%clk 0:02:48]} 10. Nf3 {[%clk 0:02:56]}  Nh5 {[%clk 0:02:47]} 11. Bxe7 {[%clk 0:02:54]}  Qxe7 {[%clk 0:02:48]} 12. O-O {[%clk 0:02:49]}  Re8 {[%clk 0:02:45]} 13. Rab1 {[%clk 0:02:43]}  a5 {[%clk 0:02:44]} 14. a3 {[%clk 0:02:42]}  Nhf6 {[%clk 0:02:39]} 15. b4 {[%clk 0:02:42]}  axb4 {[%clk 0:02:40]} 16. axb4 {[%clk 0:02:43]}  Nb6 {[%clk 0:02:40]} 17. Ne5 {[%clk 0:02:30]}  Ng4 {[%clk 0:02:40]} 18. Nf3 {[%clk 0:02:13]}  Nf6 {[%clk 0:02:40]} 19. h3 {[%clk 0:02:09]}  Be6 {[%clk 0:02:30]} 20. Rfc1 {[%clk 0:02:04]}  Nfd7 {[%clk 0:02:22]} 21. Ne2 {[%clk 0:02:00]}  Nc4 {[%clk 0:02:10]} 22. Bxc4 {[%clk 0:01:59]}  dxc4 {[%clk 0:02:11]} 23. b5 {[%clk 0:01:59]}  c5 {[%clk 0:02:07]} 24. Nf4 {[%clk 0:01:55]}  Nb6 {[%clk 0:01:31]} 25. Nxe6 {[%clk 0:01:48]}  fxe6 {[%clk 0:01:32]} 26. Qe4 {[%clk 0:01:43]}  Rec8 {[%clk 0:01:25]} 27. Ne5 {[%clk 0:01:23]}  cxd4 {[%clk 0:01:19]} 28. Qxd4 {[%clk 0:01:22]}  Qc5 {[%clk 0:01:18]} 29. Qf4 {[%clk 0:01:14]}  Rf8 {[%clk 0:01:08]} 30. Qg3 {[%clk 0:01:13]}  Rac8 {[%clk 0:00:59]} 31. Nf3 {[%clk 0:01:06]}  Rfd8 {[%clk 0:00:40]} 32. Nd4 {[%clk 0:01:00]}  Qd5 {[%clk 0:00:37]} 33. Qg4 {[%clk 0:00:58]}  Rd6 {[%clk 0:00:36]} 34. Rd1 {[%clk 0:00:56]}  Qe5 {[%clk 0:00:33]} 35. Rbc1 {[%clk 0:00:32]}  Rc5 {[%clk 0:00:27]} 36. Rd2 {[%clk 0:00:26]}  c3 {[%clk 0:00:21]} 37. Rd3 {[%clk 0:00:21]}  Nd5 {[%clk 0:00:21]} 38. Nf3 {[%clk 0:00:19]}  Qf5 {[%clk 0:00:17]} 39. Qd4 {[%clk 0:00:19]}  Rxb5 {[%clk 0:00:15]} 40. e4 {[%clk 0:00:18]}  Qf4 {[%clk 0:00:16]} 41. Re1 {[%clk 0:00:09]}  c2 {[%clk 0:00:12]} 42. Qc4 {[%clk 0:00:07]}  Rc6 {[%clk 0:00:07]} 43. Qxb5 {[%clk 0:00:07]}  c1=Q {[%clk 0:00:07]} 44. exd5 {[%clk 0:00:07]}  Qxf3 {[%clk 0:00:04]} 45. Rxc1 {[%clk 0:00:03]}  Rxc1+ {[%clk 0:00:03]} 46. Kh2 {[%clk 0:00:04]}  Qxf2 {[%clk 0:00:02]} 47. Qe8+ {[%clk 0:00:04]}  Kh7 {[%clk 0:00:01]} 48. Qxe6 {[%clk 0:00:04]}  Qg1+ {[%clk 0:00:01]} 49. Kg3 {[%clk 0:00:04]}  Rf1 {[%clk 0:00:01]} 50. Qe4+ {[%clk 0:00:04]}  Kh8 {[%clk 0:00:02]} 51. Qe8+ {[%clk 0:00:04]}  Kh7 {[%clk 0:00:02]} 52. Qe4+ {[%clk 0:00:05]}  Kh8 {[%clk 0:00:03]} 53. Rd2 {[%clk 0:00:04]}  Qc5 {[%clk 0:00:02]} 54. d6 {[%clk 0:00:04]}  Qg5+ {[%clk 0:00:03]} 55. Kh2 {[%clk 0:00:03]}  Qxd2 {[%clk 0:00:03]} 56. Qe8+ {[%clk 0:00:04]}  Kh7 {[%clk 0:00:04]} 57. Qe4+ {[%clk 0:00:05]}  Kg8 {[%clk 0:00:04]} 58. Qc4+ {[%clk 0:00:03]}  Rf7 {[%clk 0:00:05]} 59. Qe6 {[%clk 0:00:03]}  Qd4 {[%clk 0:00:04]} 60. Kh1 {[%clk 0:00:02]}  Qd1+ {[%clk 0:00:04]} 61. Kh2 {[%clk 0:00:02]}  Qd2 {[%clk 0:00:05]} 62. Qe8+ {[%clk 0:00:02]}  Rf8 {[%clk 0:00:05]} 63. Qe6+ {[%clk 0:00:03]}  Kh8 {[%clk 0:00:05]} 64. Qe7 {[%clk 0:00:03]}  Qf4+ {[%clk 0:00:05]} 65. Kh1 {[%clk 0:00:03]}  Qf6 {[%clk 0:00:06]} 66. Qc7 {[%clk 0:00:03]}  Rd8 {[%clk 0:00:06]} 67. d7 {[%clk 0:00:04]}  Qe7 {[%clk 0:00:06]} 68. Qxb7 {[%clk 0:00:03]}  Qxd7 {[%clk 0:00:07]} 69. Qf3 {[%clk 0:00:03]}  Qd1+ {[%clk 0:00:07]} 70. Qxd1 {[%clk 0:00:04]}  Rxd1+ {[%clk 0:00:07]} 71. Kh2 {[%clk 0:00:03]}  Rd2 {[%clk 0:00:08]} 0-1

[Event "December 12 Late 2023"]
[Site "https://www.chess.com"]
[Date "2023.12.12"]
[Round "9"]
[White "Nihal Sarin"]
[Black "Hakobyan, Aram"]
[Result "0-1"]
[Board "4"]
[TimeControl "180+1"]
[WhiteFideId "25092340"]
[BlackFideId "13306677"]
[WhiteElo "3145"]
[BlackElo "3024"]
[WhiteTeam "IND"]
[BlackTeam "ARM"]
[WhiteClock "0:00:00"]
[BlackClock "0:00:05"]

1. Nf3 {[%clk 0:02:54]}  d5 {[%clk 0:02:59]} 2. g3 {[%clk 0:02:53]}  Nf6 {[%clk 0:02:58]} 3. Bg2 {[%clk 0:02:53]}  e6 {[%clk 0:02:59]} 4. O-O {[%clk 0:02:53]}  Be7 {[%clk 0:03:00]} 5. d4 {[%clk 0:02:49]}  O-O {[%clk 0:03:00]} 6. c4 {[%clk 0:02:50]}  dxc4 {[%clk 0:03:01]} 7. Ne5 {[%clk 0:02:50]}  Nc6 {[%clk 0:02:59]} 8. Bxc6 {[%clk 0:02:50]}  bxc6 {[%clk 0:02:59]} 9. Nxc6 {[%clk 0:02:51]}  Qe8 {[%clk 0:03:00]} 10. Nxe7+ {[%clk 0:02:52]}  Qxe7 {[%clk 0:03:01]} 11. Be3 {[%clk 0:02:52]}  Nd5 {[%clk 0:02:14]} 12. Qc1 {[%clk 0:02:48]}  a5 {[%clk 0:02:05]} 13. Nd2 {[%clk 0:01:46]}  Ba6 {[%clk 0:01:49]} 14. Nxc4 {[%clk 0:01:45]}  a4 {[%clk 0:01:50]} 15. Bd2 {[%clk 0:01:36]}  c5 {[%clk 0:01:44]} 16. e4 {[%clk 0:01:05]}  Nf6 {[%clk 0:01:43]} 17. Bg5 {[%clk 0:01:05]}  h6 {[%clk 0:01:29]} 18. Bxf6 {[%clk 0:01:03]}  Qxf6 {[%clk 0:01:30]} 19. dxc5 {[%clk 0:01:02]}  Qd4 {[%clk 0:01:30]} 20. b3 {[%clk 0:01:01]}  Qxc5 {[%clk 0:01:30]} 21. Qc3 {[%clk 0:00:57]}  Rfd8 {[%clk 0:01:08]} 22. Rfd1 {[%clk 0:00:52]}  Rac8 {[%clk 0:00:59]} 23. Rxd8+ {[%clk 0:00:49]}  Rxd8 {[%clk 0:01:00]} 24. Rc1 {[%clk 0:00:46]}  axb3 {[%clk 0:00:58]} 25. axb3 {[%clk 0:00:47]}  Bb7 {[%clk 0:00:58]} 26. Qe1 {[%clk 0:00:33]}  Qh5 {[%clk 0:00:56]} 27. Qe3 {[%clk 0:00:29]}  Rd1+ {[%clk 0:00:46]} 28. Rxd1 {[%clk 0:00:29]}  Qxd1+ {[%clk 0:00:47]} 29. Kg2 {[%clk 0:00:30]}  f5 {[%clk 0:00:48]} 30. f3 {[%clk 0:00:31]}  fxe4 {[%clk 0:00:40]} 31. fxe4 {[%clk 0:00:31]}  Qc2+ {[%clk 0:00:41]} 32. Nd2 {[%clk 0:00:32]}  Bxe4+ {[%clk 0:00:40]} 33. Qxe4 {[%clk 0:00:33]}  Qxd2+ {[%clk 0:00:40]} 34. Kh3 {[%clk 0:00:31]}  Qd7 {[%clk 0:00:28]} 35. b4 {[%clk 0:00:31]}  e5+ {[%clk 0:00:26]} 36. Kg2 {[%clk 0:00:28]}  Qd2+ {[%clk 0:00:25]} 37. Kf3 {[%clk 0:00:28]}  Qd1+ {[%clk 0:00:22]} 38. Kg2 {[%clk 0:00:17]}  Qd2+ {[%clk 0:00:22]} 39. Kh3 {[%clk 0:00:17]}  Qd7+ {[%clk 0:00:23]} 40. g4 {[%clk 0:00:17]}  Qd1 {[%clk 0:00:14]} 41. Kg3 {[%clk 0:00:07]}  Qg1+ {[%clk 0:00:11]} 42. Kh3 {[%clk 0:00:08]}  Qf1+ {[%clk 0:00:11]} 43. Kh4 {[%clk 0:00:06]}  Qf2+ {[%clk 0:00:07]} 44. Kh5 {[%clk 0:00:06]}  Qf7+ {[%clk 0:00:03]} 45. Qg6 {[%clk 0:00:04]}  Qd5 {[%clk 0:00:04]} 46. Qe8+ {[%clk 0:00:03]}  Kh7 {[%clk 0:00:04]} 47. Qg6+ {[%clk 0:00:04]}  Kg8 {[%clk 0:00:05]} 48. Qf5 {[%clk 0:00:05]}  Qb5 {[%clk 0:00:01]} 49. Qe6+ {[%clk 0:00:04]}  Kh7 {[%clk 0:00:02]} 50. Qf5+ {[%clk 0:00:03]}  Kg8 {[%clk 0:00:02]} 51. Qe4 {[%clk 0:00:02]}  Qe8+ {[%clk 0:00:02]} 52. Kh4 {[%clk 0:00:03]}  Qd8+ {[%clk 0:00:03]} 53. Kg3 {[%clk 0:00:03]}  Qd1 {[%clk 0:00:03]} 54. Qc4+ {[%clk 0:00:02]}  Kh8 {[%clk 0:00:03]} 55. b5 {[%clk 0:00:03]}  Qe1+ {[%clk 0:00:02]} 56. Kf3 {[%clk 0:00:03]}  e4+ {[%clk 0:00:03]} 57. Kf4 {[%clk 0:00:03]}  e3 {[%clk 0:00:03]} 58. Qc8+ {[%clk 0:00:03]}  Kh7 {[%clk 0:00:04]} 59. Qc2+ {[%clk 0:00:03]}  Kh8 {[%clk 0:00:04]} 60. Qc8+ {[%clk 0:00:02]}  Kh7 {[%clk 0:00:04]} 61. Qc2+ {[%clk 0:00:02]}  Kh8 {[%clk 0:00:05]} 62. Qd3 {[%clk 0:00:03]}  Qf2+ {[%clk 0:00:04]} 63. Ke4 {[%clk 0:00:00]}  e2 {[%clk 0:00:05]} 0-1

[Event "December 12 Late 2023"]
[Site "https://www.chess.com"]
[Date "2023.12.12"]
[Round "9"]
[White "Martinez Alcantara, Jose Eduardo"]
[Black "Tari, Aryan"]
[Result "0-1"]
[Board "5"]
[TimeControl "180+1"]
[WhiteFideId "3805662"]
[BlackFideId "1510045"]
[WhiteElo "3064"]
[BlackElo "2883"]
[WhiteTeam "PER"]
[BlackTeam "NOR"]
[WhiteClock "0:00:03"]
[BlackClock "0:00:30"]

1. e4 {[%clk 0:03:00]}  e5 {[%clk 0:02:59]} 2. Nf3 {[%clk 0:02:58]}  Nc6 {[%clk 0:03:00]} 3. Nc3 {[%clk 0:02:59]}  Nf6 {[%clk 0:02:59]} 4. h3 {[%clk 0:02:59]}  d5 {[%clk 0:02:54]} 5. Bb5 {[%clk 0:02:59]}  Nxe4 {[%clk 0:02:46]} 6. O-O {[%clk 0:02:58]}  Qd6 {[%clk 0:02:27]} 7. d4 {[%clk 0:02:33]}  Nxc3 {[%clk 0:02:02]} 8. bxc3 {[%clk 0:02:34]}  e4 {[%clk 0:02:03]} 9. Ne5 {[%clk 0:02:34]}  Be7 {[%clk 0:01:46]} 10. Bf4 {[%clk 0:01:49]}  Qf6 {[%clk 0:01:46]} 11. Qd2 {[%clk 0:01:44]}  O-O {[%clk 0:01:41]} 12. f3 {[%clk 0:01:42]}  Nxe5 {[%clk 0:01:32]} 13. Bxe5 {[%clk 0:01:42]}  Qg6 {[%clk 0:01:32]} 14. fxe4 {[%clk 0:01:38]}  dxe4 {[%clk 0:01:20]} 15. Qe3 {[%clk 0:01:38]}  c6 {[%clk 0:01:17]} 16. Be2 {[%clk 0:01:33]}  Be6 {[%clk 0:01:12]} 17. a4 {[%clk 0:01:30]}  Rad8 {[%clk 0:01:09]} 18. a5 {[%clk 0:01:19]}  Bg5 {[%clk 0:01:09]} 19. Bf4 {[%clk 0:01:10]}  Bxf4 {[%clk 0:01:09]} 20. Rxf4 {[%clk 0:01:10]}  f5 {[%clk 0:01:10]} 21. Rff1 {[%clk 0:01:00]}  Qf7 {[%clk 0:00:59]} 22. Rab1 {[%clk 0:01:01]}  Qc7 {[%clk 0:00:59]} 23. c4 {[%clk 0:00:58]}  Rd7 {[%clk 0:00:53]} 24. c3 {[%clk 0:00:58]}  f4 {[%clk 0:00:52]} 25. Qf2 {[%clk 0:00:41]}  f3 {[%clk 0:00:52]} 26. Bd1 {[%clk 0:00:37]}  Rdf7 {[%clk 0:00:52]} 27. Re1 {[%clk 0:00:29]}  Bxc4 {[%clk 0:00:44]} 28. g3 {[%clk 0:00:28]}  Bd3 {[%clk 0:00:42]} 29. Bb3 {[%clk 0:00:27]}  Bxb1 {[%clk 0:00:42]} 30. Rxb1 {[%clk 0:00:28]}  Kh8 {[%clk 0:00:35]} 31. Bxf7 {[%clk 0:00:28]}  Rxf7 {[%clk 0:00:36]} 32. Re1 {[%clk 0:00:28]}  Qe7 {[%clk 0:00:32]} 33. Kh2 {[%clk 0:00:29]}  h6 {[%clk 0:00:32]} 34. Qe3 {[%clk 0:00:29]}  f2 {[%clk 0:00:32]} 35. Rf1 {[%clk 0:00:28]}  Rf3 {[%clk 0:00:32]} 36. Qe2 {[%clk 0:00:29]}  Qd6 {[%clk 0:00:31]} 37. Qxf2 {[%clk 0:00:23]}  Rxf2+ {[%clk 0:00:30]} 38. Rxf2 {[%clk 0:00:24]}  e3 {[%clk 0:00:31]} 39. Rf8+ {[%clk 0:00:24]}  Qxf8 {[%clk 0:00:30]} 40. h4 {[%clk 0:00:24]}  e2 {[%clk 0:00:30]} 41. h5 {[%clk 0:00:25]}  Qf3 {[%clk 0:00:30]} 42. Kh3 {[%clk 0:00:03]}  e1=Q {[%clk 0:00:30]} 0-1

[Event "December 12 Late 2023"]
[Site "https://www.chess.com"]
[Date "2023.12.12"]
[Round "9"]
[White "Melkumyan, Hrant"]
[Black "Kazakouski, Valery"]
[Result "1-0"]
[Board "6"]
[TimeControl "180+1"]
[WhiteFideId "13302485"]
[BlackFideId "13507443"]
[WhiteElo "2928"]
[BlackElo "2839"]
[WhiteTeam "ARM"]
[BlackTeam "LTU"]
[WhiteClock "0:00:10"]
[BlackClock "0:00:05"]

1. Nf3 {[%clk 0:03:00]}  d5 {[%clk 0:02:58]} 2. d4 {[%clk 0:03:00]}  Nf6 {[%clk 0:02:58]} 3. c4 {[%clk 0:03:00]}  c6 {[%clk 0:02:58]} 4. e3 {[%clk 0:03:00]}  Bf5 {[%clk 0:02:58]} 5. Bd3 {[%clk 0:02:58]}  Bxd3 {[%clk 0:02:56]} 6. Qxd3 {[%clk 0:02:59]}  Qa5+ {[%clk 0:02:51]} 7. Nbd2 {[%clk 0:02:57]}  e6 {[%clk 0:02:48]} 8. O-O {[%clk 0:02:57]}  Nbd7 {[%clk 0:02:48]} 9. e4 {[%clk 0:02:55]}  dxe4 {[%clk 0:02:44]} 10. Nxe4 {[%clk 0:02:56]}  Be7 {[%clk 0:02:40]} 11. Re1 {[%clk 0:02:48]}  Nxe4 {[%clk 0:02:39]} 12. Qxe4 {[%clk 0:02:47]}  Nf6 {[%clk 0:02:31]} 13. Qf4 {[%clk 0:02:37]}  O-O {[%clk 0:02:25]} 14. Bd2 {[%clk 0:02:35]}  Qa6 {[%clk 0:02:19]} 15. b3 {[%clk 0:02:29]}  Rfd8 {[%clk 0:02:10]} 16. a4 {[%clk 0:02:26]}  h6 {[%clk 0:02:05]} 17. Qg3 {[%clk 0:02:12]}  Kf8 {[%clk 0:01:39]} 18. Qh3 {[%clk 0:01:59]}  Qb6 {[%clk 0:01:29]} 19. Rab1 {[%clk 0:01:46]}  Bb4 {[%clk 0:01:29]} 20. Bxb4+ {[%clk 0:01:13]}  Qxb4 {[%clk 0:01:30]} 21. Qh4 {[%clk 0:01:14]}  c5 {[%clk 0:01:15]} 22. dxc5 {[%clk 0:01:05]}  a5 {[%clk 0:01:13]} 23. h3 {[%clk 0:00:58]}  Qxc5 {[%clk 0:01:07]} 24. Ne5 {[%clk 0:00:59]}  Rd4 {[%clk 0:00:56]} 25. Qg3 {[%clk 0:00:57]}  Rad8 {[%clk 0:00:56]} 26. Nf3 {[%clk 0:00:52]}  Rd3 {[%clk 0:00:51]} 27. Qe5 {[%clk 0:00:52]}  Qxe5 {[%clk 0:00:32]} 28. Rxe5 {[%clk 0:00:53]}  b6 {[%clk 0:00:29]} 29. Rb5 {[%clk 0:00:48]}  Nd7 {[%clk 0:00:14]} 30. Re1 {[%clk 0:00:48]}  Nc5 {[%clk 0:00:08]} 31. Rb1 {[%clk 0:00:39]}  Rd1+ {[%clk 0:00:08]} 32. Rxd1 {[%clk 0:00:39]}  Rxd1+ {[%clk 0:00:09]} 33. Kh2 {[%clk 0:00:40]}  Rd3 {[%clk 0:00:07]} 34. Rxb6 {[%clk 0:00:38]}  Rxb3 {[%clk 0:00:07]} 35. Rc6 {[%clk 0:00:37]}  Nxa4 {[%clk 0:00:06]} 36. Ne5 {[%clk 0:00:38]}  Rb7 {[%clk 0:00:04]} 37. Ra6 {[%clk 0:00:35]}  f6 {[%clk 0:00:03]} 38. Rxa5 {[%clk 0:00:35]}  Nb2 {[%clk 0:00:02]} 39. Rb5 {[%clk 0:00:25]}  Rc7 {[%clk 0:00:02]} 40. Rxb2 {[%clk 0:00:16]}  fxe5 {[%clk 0:00:02]} 41. Rc2 {[%clk 0:00:15]}  Ke7 {[%clk 0:00:03]} 42. Kg3 {[%clk 0:00:16]}  Kd6 {[%clk 0:00:02]} 43. Kf3 {[%clk 0:00:16]}  Kc5 {[%clk 0:00:02]} 44. Ke4 {[%clk 0:00:17]}  Kd6 {[%clk 0:00:02]} 45. c5+ {[%clk 0:00:16]}  Ke7 {[%clk 0:00:02]} 46. Kxe5 {[%clk 0:00:16]}  Rc6 {[%clk 0:00:02]} 47. f4 {[%clk 0:00:16]}  Kf7 {[%clk 0:00:01]} 48. g4 {[%clk 0:00:16]}  g6 {[%clk 0:00:01]} 49. h4 {[%clk 0:00:15]}  Ke7 {[%clk 0:00:02]} 50. Kd4 {[%clk 0:00:12]}  Kf6 {[%clk 0:00:01]} 51. Rb2 {[%clk 0:00:10]}  g5 {[%clk 0:00:01]} 52. fxg5+ {[%clk 0:00:10]}  hxg5 {[%clk 0:00:02]} 53. h5 {[%clk 0:00:10]}  Rc7 {[%clk 0:00:02]} 54. Rf2+ {[%clk 0:00:10]}  Ke7 {[%clk 0:00:02]} 55. Kc4 {[%clk 0:00:09]}  Rd7 {[%clk 0:00:02]} 56. h6 {[%clk 0:00:07]}  Rd1 {[%clk 0:00:02]} 57. Rh2 {[%clk 0:00:07]}  Rc1+ {[%clk 0:00:02]} 58. Kb5 {[%clk 0:00:08]}  Kd7 {[%clk 0:00:02]} 59. h7 {[%clk 0:00:08]}  Rb1+ {[%clk 0:00:03]} 60. Kc4 {[%clk 0:00:08]}  Rc1+ {[%clk 0:00:04]} 61. Kd3 {[%clk 0:00:09]}  Rd1+ {[%clk 0:00:05]} 62. Ke2 {[%clk 0:00:09]}  Rc1 {[%clk 0:00:05]} 63. h8=Q {[%clk 0:00:09]}  Rc2+ {[%clk 0:00:05]} 64. Kd3 {[%clk 0:00:10]} 1-0

[Event "December 12 Late 2023"]
[Site "https://www.chess.com"]
[Date "2023.12.12"]
[Round "9"]
[White "Rasulov, Vugar"]
[Black "Duda, Jan-Krzysztof"]
[Result "0-1"]
[Board "7"]
[TimeControl "180+1"]
[WhiteFideId "13402390"]
[BlackFideId "1170546"]
[WhiteElo "2898"]
[BlackElo "3056"]
[WhiteTeam "AZE"]
[BlackTeam "POL"]
[WhiteClock "0:00:02"]
[BlackClock "0:00:06"]

1. e4 {[%clk 0:03:00]}  c5 {[%clk 0:03:00]} 2. c3 {[%clk 0:03:01]}  d5 {[%clk 0:02:57]} 3. exd5 {[%clk 0:03:01]}  Nf6 {[%clk 0:02:58]} 4. Nf3 {[%clk 0:02:59]}  Nxd5 {[%clk 0:02:58]} 5. Bc4 {[%clk 0:02:52]}  Nb6 {[%clk 0:02:45]} 6. Bb5+ {[%clk 0:02:46]}  Bd7 {[%clk 0:02:44]} 7. a4 {[%clk 0:02:46]}  e6 {[%clk 0:02:06]} 8. O-O {[%clk 0:02:43]}  Be7 {[%clk 0:01:57]} 9. d4 {[%clk 0:02:43]}  O-O {[%clk 0:01:44]} 10. Ne5 {[%clk 0:02:33]}  Bxb5 {[%clk 0:01:43]} 11. axb5 {[%clk 0:02:34]}  cxd4 {[%clk 0:01:44]} 12. Qxd4 {[%clk 0:02:31]}  Qxd4 {[%clk 0:01:42]} 13. cxd4 {[%clk 0:02:31]}  N8d7 {[%clk 0:01:35]} 14. Nc3 {[%clk 0:02:29]}  Rfd8 {[%clk 0:01:34]} 15. Be3 {[%clk 0:02:19]}  Nf6 {[%clk 0:01:32]} 16. Ra2 {[%clk 0:02:10]}  Nfd5 {[%clk 0:01:30]} 17. Rfa1 {[%clk 0:02:07]}  Nc8 {[%clk 0:01:22]} 18. g3 {[%clk 0:01:38]}  Nb4 {[%clk 0:01:19]} 19. Ra4 {[%clk 0:01:36]}  f6 {[%clk 0:01:19]} 20. Nc4 {[%clk 0:01:32]}  Kf7 {[%clk 0:01:17]} 21. Na5 {[%clk 0:01:25]}  Rd7 {[%clk 0:01:12]} 22. Nb3 {[%clk 0:01:25]}  b6 {[%clk 0:01:04]} 23. Nd2 {[%clk 0:01:12]}  Rb8 {[%clk 0:01:04]} 24. Nc4 {[%clk 0:01:10]}  Rbb7 {[%clk 0:01:02]} 25. Kf1 {[%clk 0:00:59]}  Rbc7 {[%clk 0:01:00]} 26. b3 {[%clk 0:00:55]}  g5 {[%clk 0:00:53]} 27. Ke2 {[%clk 0:00:54]}  Nd5 {[%clk 0:00:52]} 28. Bd2 {[%clk 0:00:50]}  Nxc3+ {[%clk 0:00:48]} 29. Bxc3 {[%clk 0:00:51]}  Rd5 {[%clk 0:00:48]} 30. Kd3 {[%clk 0:00:30]}  Rxb5 {[%clk 0:00:46]} 31. Rb1 {[%clk 0:00:30]}  Rf5 {[%clk 0:00:44]} 32. Ra2 {[%clk 0:00:25]}  Nd6 {[%clk 0:00:41]} 33. Ne3 {[%clk 0:00:25]}  Rb5 {[%clk 0:00:35]} 34. b4 {[%clk 0:00:25]}  f5 {[%clk 0:00:31]} 35. f3 {[%clk 0:00:22]}  h5 {[%clk 0:00:29]} 36. Bd2 {[%clk 0:00:22]}  g4 {[%clk 0:00:28]} 37. fxg4 {[%clk 0:00:21]}  hxg4 {[%clk 0:00:29]} 38. Rba1 {[%clk 0:00:21]}  Nc8 {[%clk 0:00:25]} 39. d5 {[%clk 0:00:20]}  Rd7 {[%clk 0:00:19]} 40. Ke2 {[%clk 0:00:18]}  Bxb4 {[%clk 0:00:11]} 41. Rc2 {[%clk 0:00:11]}  Bxd2 {[%clk 0:00:08]} 42. Rxd2 {[%clk 0:00:07]}  Re7 {[%clk 0:00:03]} 43. Kf2 {[%clk 0:00:06]}  Nd6 {[%clk 0:00:03]} 44. dxe6+ {[%clk 0:00:06]}  Kxe6 {[%clk 0:00:04]} 45. Ke2 {[%clk 0:00:05]}  a5 {[%clk 0:00:03]} 46. Rad1 {[%clk 0:00:04]}  Ne4 {[%clk 0:00:04]} 47. Rc2 {[%clk 0:00:04]}  Rc5 {[%clk 0:00:04]} 48. Rxc5 {[%clk 0:00:04]}  Nxc5 {[%clk 0:00:05]} 49. Rb1 {[%clk 0:00:04]}  Nd7 {[%clk 0:00:05]} 50. Nc4 {[%clk 0:00:04]}  Kd5+ {[%clk 0:00:05]} 51. Kd3 {[%clk 0:00:04]}  Nc5+ {[%clk 0:00:06]} 52. Kc3 {[%clk 0:00:04]}  Na4+ {[%clk 0:00:05]} 53. Kd3 {[%clk 0:00:05]}  Kc6 {[%clk 0:00:04]} 54. Rc1 {[%clk 0:00:04]}  Re4 {[%clk 0:00:04]} 55. Nd2+ {[%clk 0:00:03]}  Nc5+ {[%clk 0:00:05]} 56. Kc2 {[%clk 0:00:04]}  Re2 {[%clk 0:00:05]} 57. Kc3 {[%clk 0:00:03]}  Rxh2 {[%clk 0:00:05]} 58. Nc4 {[%clk 0:00:04]}  Rg2 {[%clk 0:00:05]} 59. Kd4 {[%clk 0:00:04]}  Rxg3 {[%clk 0:00:06]} 60. Ne5+ {[%clk 0:00:04]}  Kb7 {[%clk 0:00:06]} 61. Nc4 {[%clk 0:00:02]}  Nb3+ {[%clk 0:00:06]} 0-1

[Event "December 12 Late 2023"]
[Site "https://www.chess.com"]
[Date "2023.12.12"]
[Round "9"]
[White "Yoo, Christopher Woojin"]
[Black "Kovalev, Vladislav"]
[Result "1-0"]
[Board "8"]
[TimeControl "180+1"]
[WhiteFideId "30909694"]
[BlackFideId "13504398"]
[WhiteElo "3004"]
[BlackElo "2889"]
[WhiteTeam "USA"]
[BlackTeam "FID"]
[WhiteClock "0:00:29"]
[BlackClock "0:00:00"]

1. e4 {[%clk 0:03:00]}  e5 {[%clk 0:02:59]} 2. Nf3 {[%clk 0:03:01]}  Nc6 {[%clk 0:02:59]} 3. Bb5 {[%clk 0:03:01]}  a6 {[%clk 0:03:00]} 4. Ba4 {[%clk 0:03:01]}  Nf6 {[%clk 0:03:00]} 5. d4 {[%clk 0:03:02]}  exd4 {[%clk 0:02:55]} 6. O-O {[%clk 0:03:02]}  Be7 {[%clk 0:02:33]} 7. e5 {[%clk 0:03:01]}  Ne4 {[%clk 0:02:27]} 8. Nxd4 {[%clk 0:03:02]}  Nxd4 {[%clk 0:02:22]} 9. Qxd4 {[%clk 0:03:01]}  Nc5 {[%clk 0:02:22]} 10. Nc3 {[%clk 0:03:01]}  O-O {[%clk 0:02:20]} 11. Bb3 {[%clk 0:02:54]}  Nxb3 {[%clk 0:02:19]} 12. axb3 {[%clk 0:02:55]}  d6 {[%clk 0:02:12]} 13. Bf4 {[%clk 0:02:55]}  dxe5 {[%clk 0:01:58]} 14. Qxe5 {[%clk 0:02:56]}  Bd6 {[%clk 0:01:49]} 15. Qd4 {[%clk 0:02:55]}  Bxf4 {[%clk 0:01:18]} 16. Qxf4 {[%clk 0:02:56]}  Be6 {[%clk 0:01:18]} 17. Rfe1 {[%clk 0:02:54]}  Qd7 {[%clk 0:01:03]} 18. Rad1 {[%clk 0:02:49]}  Qc6 {[%clk 0:01:03]} 19. Rd3 {[%clk 0:02:49]}  Rfe8 {[%clk 0:00:54]} 20. h4 {[%clk 0:02:48]}  f6 {[%clk 0:00:25]} 21. Rde3 {[%clk 0:02:47]}  Bf7 {[%clk 0:00:24]} 22. Re7 {[%clk 0:02:38]}  h5 {[%clk 0:00:17]} 23. R1e3 {[%clk 0:02:35]}  Rxe7 {[%clk 0:00:16]} 24. Rxe7 {[%clk 0:02:36]}  Re8 {[%clk 0:00:14]} 25. Qxc7 {[%clk 0:02:29]}  Rxe7 {[%clk 0:00:09]} 26. Qxe7 {[%clk 0:02:30]}  b5 {[%clk 0:00:09]} 27. Qd8+ {[%clk 0:01:57]}  Kh7 {[%clk 0:00:10]} 28. Qd4 {[%clk 0:01:58]}  Bg6 {[%clk 0:00:09]} 29. b4 {[%clk 0:01:44]}  Bxc2 {[%clk 0:00:08]} 30. Qc5 {[%clk 0:01:28]}  Qe8 {[%clk 0:00:05]} 31. Nd5 {[%clk 0:01:26]}  Qe1+ {[%clk 0:00:05]} 32. Kh2 {[%clk 0:01:26]}  Bg6 {[%clk 0:00:04]} 33. Qe3 {[%clk 0:01:06]}  Qd1 {[%clk 0:00:02]} 34. Nf4 {[%clk 0:00:50]}  Qd6 {[%clk 0:00:03]} 35. g3 {[%clk 0:00:46]}  Qxb4 {[%clk 0:00:01]} 36. Nxg6 {[%clk 0:00:46]}  Kxg6 {[%clk 0:00:02]} 37. Qe8+ {[%clk 0:00:47]}  Kh6 {[%clk 0:00:02]} 38. Qh8+ {[%clk 0:00:46]}  Kg6 {[%clk 0:00:02]} 39. Qe8+ {[%clk 0:00:46]}  Kh6 {[%clk 0:00:03]} 40. Qe3+ {[%clk 0:00:44]}  Kh7 {[%clk 0:00:03]} 41. Qd3+ {[%clk 0:00:45]}  g6 {[%clk 0:00:03]} 42. Qd7+ {[%clk 0:00:45]}  Kh6 {[%clk 0:00:03]} 43. Qc8 {[%clk 0:00:41]}  Kg7 {[%clk 0:00:03]} 44. Qb7+ {[%clk 0:00:40]}  Kg8 {[%clk 0:00:02]} 45. Qa8+ {[%clk 0:00:37]}  Kf7 {[%clk 0:00:03]} 46. Qb7+ {[%clk 0:00:35]}  Kg8 {[%clk 0:00:02]} 47. Qc8+ {[%clk 0:00:29]}  Kg7 {[%clk 0:00:03]} 48. Qc7+ {[%clk 0:00:29]}  Kh6 {[%clk 0:00:03]} 49. Qd8 {[%clk 0:00:29]}  g5 {[%clk 0:00:03]} 50. Qxf6+ {[%clk 0:00:29]}  Kh7 {[%clk 0:00:02]} 51. hxg5 {[%clk 0:00:28]}  Qe4 {[%clk 0:00:01]} 52. Qf7+ {[%clk 0:00:28]}  Kh8 {[%clk 0:00:00]} 53. g6 {[%clk 0:00:29]} 1-0